bitfinex-derivatives/quotes_ETHF0:USTF0_20260112
["timestamp","ask_amount","ask_price","bid_price","bid_amount"]
[1768190439978,1.03749989,3155.7,3153.9,41.76693617]
[1768190440270,0.14932088,3155.5,3153.9,41.76693617]
[1768190440467,1.03749989,3155.4,3153.9,41.76693617]
[1768190440665,0.14932088,3155.4,3153.9,41.76693617]
[1768190441276,0.14932088,3155.4,3153.9,41.92568617]
[1768190441776,0.14932088,3155.8,3153.9,41.92568617]
[1768190441977,1.03755325,3155.7,3153.9,41.92568617]
[1768190442177,0.88823237,3155.6,3153.9,40.95875]
[1768190442380,0.88823237,3155.6,3154.0,0.96693617]
[1768190442885,0.88823237,3155.6,3154.0,1.12567617]
[1768190443580,0.88823237,3155.6,3154.1,0.15874]
[1768190443782,0.88823237,3155.6,3154.2,2.171]
[1768190445378,0.14932088,3155.7,3154.2,2.171]
[1768190450186,0.88978265,3155.6,3154.2,2.171]
[1768190450481,0.14932088,3155.7,3154.2,2.171]
[1768190450685,1.03911256,3155.6,3154.2,2.171]
[1768190450885,0.14932088,3155.6,3154.2,2.171]
[1768190452383,0.14932088,3155.6,3154.1,0.15874]
[1768190452680,0.14932088,3155.6,3154.2,5.362]
[1768190456886,0.14932088,3155.6,3154.3,5.371]
[1768190459890,0.14932088,3155.6,3154.1,1.12567617]
[1768190460191,0.14932088,3155.6,3154.2,5.378]
[1768190461291,0.14932088,3155.6,3154.7,0.96616684]
[1768190461492,0.14932088,3155.6,3154.8,2.208]
[1768190462193,0.14932088,3155.6,3154.7,0.96616684]
[1768190462394,0.14932088,3155.6,3154.8,2.209]
[1768190463295,0.96616684,3156.0,3154.8,2.209]
[1768190463592,0.14932088,3155.8,3154.8,2.209]
[1768190463793,0.890459,3155.7,3154.8,2.209]
[1768190463992,0.890459,3155.6,3154.8,2.209]
[1768190464194,0.14932088,3155.8,3154.8,2.209]
[1768190464491,0.13854483,3156.2,3155.3,0.96616684]
[1768190464792,0.13854483,3156.2,3155.4,2.211]
[1768190464793,0.89021957,3156.1,3155.4,2.211]
[1768190464997,0.89021957,3156.0,3155.4,2.211]
[1768190465180,0.13854483,3156.2,3155.5,0.96616684]
[1768190465393,0.13854483,3156.2,3155.4,2.211]
[1768190467795,0.13854483,3156.2,3155.3,0.00255734]
[1768190467997,0.13854483,3156.2,3155.4,2.209]
[1768190472692,0.13372379,3156.6,3155.7,0.96616684]
[1768190472998,0.89075044,3156.5,3155.7,0.96616684]
[1768190473199,0.89075044,3156.4,3155.7,0.96616684]
[1768190473396,0.13372379,3156.6,3155.7,0.96616684]
[1768190473602,0.8903083,3156.5,3155.7,0.96616684]
[1768190473899,0.8903083,3156.4,3155.7,0.96616684]
[1768190474091,0.00361575,3156.5,3155.7,0.96616684]
[1768190474291,0.89017931,3156.4,3155.7,0.96616684]
[1768190474488,0.00361575,3156.5,3155.7,3.17216684]
[1768190476004,0.13372379,3157.0,3156.1,0.96616684]
[1768190476203,0.88723455,3156.9,3155.9,0.96616684]
[1768190476503,0.13372379,3157.0,3155.9,0.96616684]
[1768190476798,0.96616684,3157.2,3155.9,0.96616684]
[1768190476799,1.02057341,3156.9,3155.9,0.96616684]
[1768190477098,0.13677843,3156.9,3155.9,0.96616684]
[1768190477798,0.13677843,3156.9,3155.7,2.206]
[1768190477998,0.13677843,3156.9,3155.8,2.208]
[1768190478404,0.13677843,3156.9,3155.3,0.16123734]
[1768190478405,0.13372379,3156.3,3155.3,0.00255734]
[1768190478703,0.13372379,3156.0,3155.3,0.00255734]
[1768190480999,0.00305464,3156.9,3155.3,0.00255734]
[1768190481200,0.13372379,3156.4,3155.5,0.96616684]
[1768190481597,0.13372379,3156.4,3155.3,0.00255734]
[1768190481598,0.13372379,3156.4,3155.3,0.96872418]
[1768190482611,0.13372379,3156.4,3155.4,2.212]
[1768190483400,0.13372379,3156.4,3155.5,2.212]
[1768190483906,0.13372379,3156.4,3155.5,3.17816684]
[1768190484611,0.13372379,3156.4,3155.3,0.00255734]
[1768190484805,0.13372379,3156.4,3155.4,2.211]
[1768190487407,0.13372379,3156.4,3155.4,2.21]
[1768190489310,0.88693149,3156.3,3155.4,2.21]
[1768190489503,0.13372379,3156.4,3155.4,2.21]
[1768190489704,0.88702816,3156.3,3155.4,2.21]
[1768190490005,0.13372379,3156.4,3155.4,2.21]
[1768190490206,0.88702893,3156.3,3155.4,2.21]
[1768190490408,0.13372379,3156.4,3155.4,2.21]
[1768190490605,0.8870661,3156.3,3155.5,2.208]
[1768190490910,0.13372379,3156.4,3155.5,2.208]
[1768190491102,0.88710676,3156.3,3155.5,2.208]
[1768190491304,0.13372379,3156.4,3155.5,2.208]
[1768190491514,0.88743249,3156.3,3155.5,2.208]
[1768190491818,0.13372379,3156.4,3155.5,2.208]
[1768190492109,0.88742907,3156.3,3155.5,2.208]
[1768190492303,0.13372379,3156.4,3155.5,2.208]
[1768190494617,0.13372379,3156.4,3155.3,0.00255734]
[1768190495011,0.14709188,3156.2,3155.4,2.206]
[1768190495910,0.00305464,3156.9,3155.4,2.206]
[1768190495911,0.14709188,3156.6,3155.4,2.206]
[1768190496115,0.88811733,3156.5,3155.4,2.206]
[1768190496418,0.88811733,3156.4,3155.4,2.206]
[1768190496606,0.14709188,3156.6,3155.4,2.206]
[1768190496916,0.88813236,3156.5,3155.4,2.206]
[1768190497112,0.88813236,3156.4,3155.4,2.206]
[1768190497314,0.14709188,3156.6,3155.4,2.206]
[1768190497507,0.88815008,3156.5,3155.4,2.206]
[1768190497714,0.88815008,3156.4,3155.5,0.96616684]
[1768190497914,0.14709188,3156.6,3155.4,2.206]
[1768190498119,0.88813975,3156.5,3155.4,2.206]
[1768190498319,0.88813975,3156.4,3155.4,2.206]
[1768190498522,0.14709188,3156.6,3155.4,2.206]
[1768190498814,1.03526083,3156.5,3155.4,2.206]
[1768190499019,0.88816895,3156.4,3155.4,2.206]
[1768190499223,0.14709188,3156.5,3155.4,2.206]
[1768190499517,0.88818687,3156.4,3155.4,2.206]
[1768190499717,0.14709188,3156.5,3155.4,2.206]
[1768190499920,0.88812846,3156.4,3155.4,2.206]
[1768190500118,0.14709188,3156.5,3155.4,2.206]
[1768190500318,0.88814582,3156.4,3155.4,2.206]
[1768190500513,0.14709188,3156.5,3155.4,2.206]
[1768190500720,0.88814385,3156.4,3155.4,2.206]
[1768190500909,0.14709188,3156.5,3155.4,2.206]
[1768190501112,0.88814447,3156.4,3155.4,2.206]
[1768190501311,0.14709188,3156.5,3155.4,2.206]
[1768190501512,0.88817009,3156.4,3155.4,2.206]
[1768190501714,0.14709188,3156.5,3155.3,0.00255734]
[1768190501915,0.88819298,3156.4,3155.3,3.17272418]
[1768190502209,0.14709188,3156.5,3155.3,3.17272418]
[1768190502415,0.88821789,3156.4,3155.5,0.96616684]
[1768190502609,0.14709188,3156.5,3155.5,0.96616684]
[1768190502822,0.88819523,3156.4,3155.5,0.96616684]
[1768190503026,0.14709188,3156.5,3155.5,0.96616684]
[1768190503216,0.88841664,3156.4,3155.5,0.96616684]
[1768190503417,0.14709188,3156.5,3155.5,0.96616684]
[1768190503619,0.88842548,3156.4,3155.5,0.96616684]
[1768190503917,0.14709188,3156.5,3155.5,0.96616684]
[1768190504113,0.88845193,3156.4,3155.5,0.96616684]
[1768190504315,0.14709188,3156.5,3155.5,0.96616684]
[1768190504516,0.8884523,3156.4,3155.5,0.96616684]
[1768190504813,0.14709188,3156.5,3155.5,0.96616684]
[1768190505016,0.88845391,3156.4,3155.5,0.96616684]
[1768190505210,0.14709188,3156.5,3155.5,0.96616684]
[1768190505423,0.00305464,3156.9,3156.2,0.96616684]
[1768190505625,0.15014652,3156.9,3156.2,2.202]
[1768190505822,0.14709188,3156.8,3155.5,0.96616684]
[1768190506125,0.14709188,3156.6,3155.6,5.375]
[1768190507126,0.14709188,3156.6,3155.7,2.201]
[1768190510327,0.14709188,3156.6,3155.5,0.96616684]
[1768190510532,0.14709188,3156.6,3155.6,2.2]
[1768190512628,0.14709188,3156.6,3155.3,0.00255734]
[1768190512828,0.14709188,3156.6,3155.4,5.371]
[1768190513538,0.14709188,3156.4,3155.3,0.00255734]
[1768190513725,0.14709188,3156.4,3155.5,2.199]
[1768190514520,0.14709188,3156.4,3155.3,0.00255734]
[1768190514725,0.14709188,3156.4,3155.5,2.199]
[1768190518033,0.14709188,3156.4,3155.3,0.00255734]
[1768190518233,0.14709188,3156.4,3155.4,2.197]
[1768190518432,0.15014652,3156.9,3155.3,0.00255734]
[1768190518633,0.8860366,3156.8,3155.5,3.16316684]
[1768190518836,0.8860366,3156.7,3155.5,3.16316684]
[1768190519033,0.8860366,3156.6,3155.5,3.16316684]
[1768190519233,0.15014652,3156.9,3155.5,3.16316684]
[1768190519434,1.03314488,3156.8,3155.5,3.16316684]
[1768190519628,0.886053,3156.7,3155.5,3.16316684]
[1768190519934,0.886053,3156.6,3155.5,3.16316684]
[1768190520234,0.14709188,3156.8,3155.7,0.96616684]
[1768190520434,0.88605037,3156.7,3155.7,0.96616684]
[1768190520631,0.88605037,3156.6,3155.7,0.96616684]
[1768190520834,0.14709188,3156.8,3155.7,0.96616684]
[1768190521026,0.88605231,3156.7,3155.7,0.96616684]
[1768190521226,0.88605231,3156.6,3155.7,0.96616684]
[1768190521427,0.14709188,3156.8,3155.5,2.197]
[1768190521629,0.8860554,3156.7,3155.5,2.197]
[1768190521930,0.8860554,3156.6,3155.5,2.197]
[1768190522131,0.14709188,3156.8,3155.5,2.197]
[1768190522333,0.88605734,3156.7,3155.5,2.197]
[1768190522634,0.14709188,3156.8,3155.5,2.197]
[1768190522834,0.8860835,3156.7,3155.5,2.197]
[1768190523037,0.14709188,3156.8,3155.5,2.197]
[1768190523238,0.88608854,3156.7,3155.5,2.197]
[1768190523536,0.14709188,3156.8,3155.5,2.197]
[1768190523737,0.88607778,3156.7,3155.5,2.197]
[1768190524037,0.14709188,3156.8,3155.5,2.197]
[1768190524237,0.00305464,3156.9,3155.5,2.197]
[1768190524238,0.88608034,3156.7,3155.7,0.96556696]
[1768190524438,0.00305464,3156.9,3155.7,0.96556696]
[1768190524743,0.88607724,3156.8,3155.7,0.96556696]
[1768190525038,0.00305464,3156.9,3155.7,0.96556696]
[1768190525241,0.88616255,3156.8,3155.7,0.96556696]
[1768190525540,0.00305464,3156.9,3155.7,0.96556696]
[1768190528738,0.00305464,3156.9,3155.7,1.12422696]
[1768190528942,0.00305464,3156.9,3155.7,41.92422696]
[1768190531842,0.14093294,3157.6,3155.7,41.92422696]
[1768190532147,0.14093294,3157.4,3155.8,5.37]
[1768190532444,0.14093294,3157.2,3155.8,5.37]
[1768190532737,0.88539218,3157.1,3155.9,2.199]
[1768190532946,0.14093294,3157.0,3155.9,3.172]
[1768190533140,0.14093294,3156.8,3155.3,0.00255734]
[1768190533335,0.14093294,3156.6,3155.4,5.372]
[1768190534635,0.14093294,3156.6,3155.3,0.00255734]
[1768190534835,0.14093294,3156.6,3155.4,5.374]
[1768190537144,0.14093294,3156.6,3155.3,0.00255734]
[1768190537345,0.14093294,3156.6,3155.4,5.38]
[1768190537546,0.14093294,3156.4,3155.5,2.208]
[1768190537745,0.88528517,3156.3,3155.5,2.208]
[1768190538045,0.14093294,3156.4,3155.5,2.208]
[1768190538245,0.14093294,3156.4,3155.6,2.208]
[1768190540745,0.14093294,3157.0,3155.6,2.208]
[1768190541044,0.0040671,3157.1,3155.6,2.208]
[1768190541045,1.02628282,3156.9,3155.6,2.208]
[1768190541240,0.88534988,3156.8,3155.6,2.208]
[1768190542447,0.14093294,3156.9,3155.6,2.208]
[1768190545954,0.14093294,3156.9,3155.5,1.12423696]
[1768190546161,0.14093294,3156.9,3155.7,5.388]
[1768190546457,0.14093294,3156.9,3155.5,1.12423696]
[1768190546658,0.14093294,3156.9,3155.6,5.389]
[1768190548761,0.0040671,3157.1,3155.6,5.389]
[1768190549064,0.88594355,3157.0,3155.6,5.389]
[1768190549249,0.88594355,3156.9,3155.6,5.389]
[1768190549454,0.0040671,3157.1,3155.6,5.389]
[1768190549653,0.88596598,3157.0,3155.6,5.389]
[1768190549859,0.88596598,3156.9,3155.6,5.389]
[1768190550054,0.0040671,3157.1,3155.6,5.389]
[1768190550254,0.88596309,3157.0,3155.6,5.389]
[1768190550554,0.88596309,3156.9,3155.6,5.389]
[1768190550753,0.0040671,3157.1,3155.6,5.389]
[1768190550971,0.0040671,3157.1,3155.6,5.54767]
[1768190550972,0.88596888,3157.0,3155.6,5.54767]
[1768190551151,0.88596888,3156.9,3155.6,5.54767]
[1768190551355,0.0040671,3157.1,3155.6,5.54767]
[1768190551556,1.02691217,3157.0,3155.6,5.54767]
[1768190551758,0.88597923,3156.9,3155.6,5.54767]
[1768190560570,0.88597923,3156.9,3155.6,0.15867]
[1768190560871,0.88597923,3156.9,3155.7,5.419]
[1768190561969,0.88597923,3156.9,3155.9,0.96556696]
[1768190562272,0.14093294,3157.0,3155.9,0.96556696]
[1768190566171,0.14093294,3157.0,3155.8,0.15865]
[1768190570875,0.14093294,3157.0,3155.8,1.12421696]
[1768190571773,0.14093294,3157.0,3155.9,5.429]
[1768190572474,0.88473419,3156.9,3155.9,5.429]
[1768190572681,0.14093294,3157.0,3155.9,5.429]
[1768190572876,0.88473818,3156.9,3155.9,5.429]
[1768190573085,0.14093294,3157.0,3155.9,5.429]
[1768190573268,0.88489215,3156.9,3155.9,5.429]
[1768190573473,0.14093294,3157.0,3155.9,5.429]
[1768190573674,0.88494007,3156.9,3155.9,5.429]
[1768190573971,0.14093294,3157.0,3155.9,5.429]
[1768190574171,0.8849429,3156.9,3155.9,5.429]
[1768190574371,0.14093294,3157.0,3155.9,5.429]
[1768190574574,0.88515129,3156.9,3155.9,5.429]
[1768190574779,0.14093294,3157.0,3155.9,5.429]
[1768190574979,1.0172158,3156.9,3155.8,1.12421696]
[1768190575280,0.13190503,3156.9,3155.9,5.431]
[1768190575475,0.13190503,3156.9,3155.8,1.12421696]
[1768190575683,0.13190503,3156.9,3155.9,5.432]
[1768190580184,0.13190503,3156.7,3156.0,5.439]
[1768190580381,0.13190503,3156.7,3156.1,2.267]
[1768190580681,0.13190503,3156.7,3156.2,2.267]
[1768190581082,0.13190503,3156.7,3156.3,2.268]
[1768190581886,0.13190503,3156.7,3155.8,3.172]
[1768190582182,0.13190503,3156.7,3155.9,2.268]
[1768190583470,0.13190503,3156.7,3155.3,2.85852765]
[1768190583679,0.13190503,3156.2,3155.4,2.271]
[1768190584776,0.13190503,3156.2,3155.4,3.23662919]
[1768190588389,0.13190503,3156.2,3155.4,2.271]
[1768190588590,0.13190503,3156.2,3155.4,3.23662919]
[1768190591593,0.13190503,3156.2,3155.3,0.00255734]
[1768190591982,0.13190503,3156.2,3155.4,2.287]
[1768190595890,0.13190503,3156.2,3155.3,0.00255734]
[1768190596188,0.14351281,3155.6,3155.3,0.00255734]
[1768190598690,0.14351281,3155.6,3155.1,2.294]
[1768190598896,0.14351281,3155.6,3154.8,0.96562919]
[1768190599094,0.14351281,3155.6,3155.1,2.293]
[1768190599701,0.14351281,3155.6,3155.1,0.00236288]
[1768190600294,0.14351281,3155.5,3154.9,2.293]
[1768190600998,0.14351281,3155.5,3154.2,0.15874]
[1768190601189,0.14351281,3155.5,3154.3,3.25762919]
[1768190601390,0.14351281,3155.4,3154.2,0.00375123]
[1768190601590,0.14351281,3155.4,3154.3,2.292]
[1768190601791,0.14351281,3155.4,3154.4,2.293]
[1768190602096,0.14351281,3155.2,3154.5,2.293]
[1768190602496,0.14351281,3155.2,3154.2,0.00375123]
[1768190602797,0.14351281,3155.2,3154.3,2.294]
[1768190603394,0.14351281,3155.2,3154.2,0.00375123]
[1768190603598,0.14351281,3154.9,3154.2,2.29975123]
[1768190605999,1.93125838,3154.3,3151.0,0.13193386]
[1768190606201,0.96562919,3151.6,3151.0,0.13193386]
[1768190606400,0.96562919,3151.9,3151.0,0.13193386]
[1768190606600,6.0,3152.6,3151.0,0.13193386]
[1768190606905,6.0,3152.6,3151.0,0.13490758]
[1768190606906,0.00359632,3152.6,3151.0,0.13490758]
[1768190607096,0.96562919,3152.5,3151.0,0.13490758]
[1768190607407,0.96562919,3152.2,3151.0,0.13490758]
[1768190607609,0.96562919,3151.9,3151.0,0.13490758]
[1768190608200,0.96562919,3152.5,3151.0,0.00297372]
[1768190608398,0.96562919,3151.8,3151.0,0.00297372]
[1768190609299,0.96562919,3151.7,3150.4,0.13193386]
[1768190609503,1.05081097,3151.6,3150.4,0.13193386]
[1768190609702,0.00359632,3152.6,3150.6,0.13193386]
[1768190610002,0.96562919,3152.1,3150.6,0.13193386]
[1768190610207,1.0508951,3152.0,3150.6,0.13505993]
[1768190610909,1.0508951,3152.0,3150.9,0.13193386]
[1768190611209,0.96562919,3152.4,3151.1,0.13193386]
[1768190611410,1.04860601,3152.3,3151.1,0.13193386]
[1768190611607,1.04860601,3152.2,3151.1,0.13193386]
[1768190611808,0.00359632,3152.6,3151.4,0.13193386]
[1768190612008,1.04862507,3152.5,3151.4,0.13193386]
[1768190612208,1.04862507,3152.4,3151.4,0.13193386]
[1768190612410,0.96922551,3152.6,3151.4,0.13193386]
[1768190612610,0.96562919,3152.4,3151.4,0.13193386]
[1768190613207,0.00359632,3152.6,3151.4,0.13193386]
[1768190613398,1.04738362,3152.5,3151.5,0.13193386]
[1768190613599,0.00359632,3152.6,3151.5,0.13193386]
[1768190613798,1.04738997,3152.5,3151.5,0.13193386]
[1768190613998,0.00359632,3152.6,3151.5,0.13193386]
[1768190614198,1.0473893,3152.5,3151.5,0.13193386]
[1768190614403,0.00359632,3152.6,3151.7,0.14000558]
[1768190617104,0.96922551,3152.6,3151.7,0.14000558]
[1768190617908,0.00359632,3152.6,3151.7,0.14000558]
[1768190618216,0.96922551,3152.6,3151.7,0.14000558]
[1768190618415,0.00359632,3152.6,3151.7,0.14000558]
[1768190620316,0.00359632,3152.6,3151.7,1.10563477]
[1768190620512,0.00359632,3152.6,3151.8,0.14000558]
[1768190620718,0.00359632,3152.6,3152.0,0.14000558]
[1768190623516,0.96562919,3153.2,3152.0,0.14000558]
[1768190623706,1.04653781,3153.1,3152.0,0.14000558]
[1768190623906,1.04653781,3153.0,3152.0,0.14000558]
[1768190624113,1.04653781,3152.9,3152.0,0.14000558]
[1768190624315,1.04653781,3152.8,3152.0,0.14000558]
[1768190624511,1.04653781,3152.8,3151.6,0.14000558]
[1768190624710,0.96562919,3152.6,3151.6,0.14000558]
[1768190624912,1.04653781,3152.5,3151.6,0.14000558]
[1768190625918,0.96562919,3152.3,3151.6,0.14000558]
[1768190626116,1.04653781,3152.2,3151.6,0.14000558]
[1768190626320,1.04653781,3152.2,3150.9,0.14000558]
[1768190626620,0.96562919,3152.1,3150.9,0.14000558]
[1768190626821,1.04653781,3152.0,3150.9,0.14000558]
[1768190627223,1.04653781,3151.9,3151.0,0.14000558]
[1768190627421,1.04653781,3151.8,3151.0,0.14000558]
[1768190627621,1.04653781,3151.7,3151.0,0.14000558]
[1768190627819,0.96562919,3152.3,3151.0,0.14000558]
[1768190628118,1.0502843,3152.2,3151.0,0.14000558]
[1768190628316,0.96562919,3151.5,3150.6,0.14313165]
[1768190628515,1.0502843,3151.4,3150.6,0.14313165]
[1768190628716,1.0502843,3151.3,3150.7,0.14000558]
[1768190628922,0.96562919,3151.9,3150.7,0.14000558]
[1768190629123,1.0508774,3151.8,3150.7,0.14000558]
[1768190629322,1.0508774,3151.7,3150.7,0.14000558]
[1768190630224,0.96562919,3151.6,3150.7,0.14000558]
[1768190630420,1.0508774,3151.5,3150.7,0.14000558]
[1768190631127,1.0508774,3151.4,3150.7,0.14000558]
[1768190631330,1.0508774,3151.3,3150.7,0.14000558]
[1768190631519,1.0508774,3151.2,3150.7,0.14000558]
[1768190631734,1.0508774,3151.1,3150.7,0.14000558]
[1768190632023,0.96562919,3151.8,3150.7,0.14000558]
[1768190632829,0.96562919,3152.0,3150.7,0.14000558]
[1768190633826,0.15883,3152.5,3150.9,0.14000558]
[1768190634025,0.96562919,3152.3,3151.1,0.14000558]
[1768190635535,0.96562919,3152.1,3151.1,0.14000558]
[1768190636135,0.96562919,3151.9,3150.6,0.00312607]
[1768190636331,0.96562919,3152.1,3150.8,0.96562919]
[1768190636838,0.15883,3152.5,3150.8,0.96562919]
[1768190637041,0.00344851,3152.9,3151.8,0.96562919]
[1768190637341,0.00344851,3152.9,3151.0,0.15889]
[1768190637342,0.00344851,3152.9,3151.1,0.96562919]
[1768190637539,0.96562919,3152.5,3151.1,41.76562919]
[1768190637942,0.96562919,3152.5,3151.2,0.14000558]
[1768190638532,0.00344851,3152.9,3151.3,0.96562919]
[1768190638741,0.96562919,3152.7,3151.4,0.14000558]
[1768190639345,0.00344851,3152.9,3151.4,0.14000558]
[1768190640942,0.13841261,3152.9,3151.0,0.15889]
[1768190641144,0.1349641,3152.7,3150.9,0.14000558]
[1768190642540,2.95595585,3152.7,3150.9,0.14000558]
[1768190644147,1.00917245,3152.6,3150.9,0.14000558]
[1768190644449,2.82099175,3152.3,3150.9,0.14000558]
[1768190644647,1.00917245,3152.2,3150.9,0.14000558]
[1768190644950,1.00917245,3152.1,3150.9,0.14000558]
[1768190645251,1.00917245,3152.0,3150.9,0.14000558]
[1768190645445,1.00917245,3151.9,3150.9,0.14000558]
[1768190645636,1.00917245,3151.8,3150.9,0.14000558]
[1768190645841,1.00917245,3151.7,3150.9,0.14000558]
[1768190646148,1.00917245,3151.6,3150.9,0.14000558]
[1768190646342,1.00917245,3151.5,3150.9,0.14000558]
[1768190646541,1.00917245,3151.4,3150.9,0.14000558]
[1768190646738,1.00917245,3151.3,3150.9,0.14000558]
[1768190646945,0.89204985,3151.2,3150.9,0.14000558]
[1768190647145,2.82099175,3152.2,3150.9,0.14000558]
[1768190647750,2.82099175,3152.3,3150.9,0.14000558]
[1768190648752,3.96302581,3152.6,3150.9,0.14000558]
[1768190648951,2.82099175,3152.8,3150.9,0.14000558]
[1768190650755,2.82444026,3152.9,3150.9,0.14000558]
[1768190650953,2.82444026,3152.9,3151.1,0.14880945]
[1768190657362,0.14936197,3152.9,3151.1,0.14880945]
[1768190658160,0.14591346,3152.8,3150.6,0.31085552]
[1768190658462,0.14591346,3152.6,3150.6,0.15193552]
[1768190659064,0.14591346,3152.4,3150.6,0.15193552]
[1768190659250,1.13660981,3152.3,3150.6,0.15193552]
[1768190659456,0.96889492,3152.1,3150.6,0.15193552]
[1768190659754,0.99069635,3152.0,3150.6,0.15193552]
[1768190659956,0.99069635,3151.9,3150.6,0.15193552]
[1768190660160,0.99069635,3151.8,3150.6,0.15193552]
[1768190660360,0.99069635,3151.7,3150.6,0.15193552]
[1768190660562,0.99069635,3151.6,3150.6,0.15193552]
[1768190660866,0.99069635,3151.5,3150.6,0.15193552]
[1768190661072,0.96889492,3152.1,3150.6,0.15193552]
[1768190661365,0.99065519,3152.0,3150.6,0.00312607]
[1768190661558,0.99065519,3151.9,3150.6,0.00312607]
[1768190661861,0.99065519,3151.8,3150.6,0.00312607]
[1768190662064,0.99065519,3151.7,3150.6,0.00312607]
[1768190662266,0.99065519,3151.6,3150.6,0.00312607]
[1768190662461,1.11480838,3152.1,3150.6,0.00312607]
[1768190662666,0.99074351,3152.0,3150.6,0.00312607]
[1768190662866,0.99074351,3151.9,3150.6,0.00312607]
[1768190663069,0.99074351,3151.8,3150.6,0.00312607]
[1768190663268,0.99067275,3151.7,3150.6,0.00312607]
[1768190663467,0.99067275,3151.6,3150.6,0.00312607]
[1768190663669,0.99067275,3151.5,3150.6,0.00312607]
[1768190663861,1.11480838,3152.1,3150.6,0.00312607]
[1768190664061,0.99072462,3152.0,3150.6,0.00312607]
[1768190664257,0.99072462,3151.9,3150.6,0.00312607]
[1768190664461,0.99072462,3151.8,3150.6,0.00312607]
[1768190664671,0.99072462,3151.7,3150.6,0.00312607]
[1768190664870,0.99072462,3151.6,3150.6,0.15193552]
[1768190665172,0.99072462,3151.5,3150.6,0.15193552]
[1768190665366,0.14591346,3152.1,3150.6,0.15193552]
[1768190665566,0.99066101,3152.0,3150.6,0.15193552]
[1768190665868,0.99066101,3151.9,3150.6,0.15193552]
[1768190666071,0.99066101,3151.8,3150.6,0.15193552]
[1768190666372,0.99066101,3151.7,3150.6,0.15193552]
[1768190666574,0.99066101,3151.6,3150.6,0.15193552]
[1768190666870,0.99066101,3151.5,3150.6,0.15193552]
[1768190667168,0.14591346,3152.1,3150.6,0.15193552]
[1768190667371,0.98160383,3152.0,3150.6,0.15193552]
[1768190667558,0.98160383,3151.9,3150.6,0.15193552]
[1768190667856,0.98160383,3151.8,3150.6,0.15193552]
[1768190668061,0.98160383,3151.7,3150.6,0.15193552]
[1768190668364,0.98160383,3151.6,3150.6,0.15193552]
[1768190668565,0.98160383,3151.5,3150.6,0.15193552]
[1768190668766,0.14591346,3152.1,3150.6,0.15193552]
[1768190668962,0.98154219,3152.0,3150.6,0.15193552]
[1768190669158,0.98154219,3151.9,3150.6,0.15193552]
[1768190669362,0.98154219,3151.8,3150.6,0.15193552]
[1768190669562,0.98154219,3151.7,3150.6,0.15193552]
[1768190669766,0.98154219,3151.6,3150.6,0.15193552]
[1768190669968,0.98154219,3151.5,3150.6,0.15193552]
[1768190670271,0.14591346,3152.1,3150.6,0.15193552]
[1768190670471,0.98152551,3152.0,3150.6,0.15193552]
[1768190670772,0.98152551,3151.9,3150.6,0.15193552]
[1768190670972,0.98152551,3151.8,3150.6,0.15193552]
[1768190671163,0.98152551,3151.7,3150.6,0.15193552]
[1768190671364,0.98152551,3151.6,3150.6,0.15193552]
[1768190671565,0.98152551,3151.5,3150.6,0.15193552]
[1768190671869,0.14591346,3152.1,3150.6,0.15193552]
[1768190672069,0.98146401,3152.0,3150.6,0.15193552]
[1768190672265,0.98146401,3151.9,3150.6,0.15193552]
[1768190672465,0.98146401,3151.8,3150.6,0.15193552]
[1768190672667,0.98146401,3151.7,3150.6,0.15193552]
[1768190672869,0.98146401,3151.6,3150.6,0.15193552]
[1768190673068,0.98146401,3151.5,3150.6,0.15193552]
[1768190673264,0.98146401,3151.4,3150.6,0.15193552]
[1768190673459,0.98146401,3151.3,3150.6,0.15193552]
[1768190673664,0.14591346,3152.1,3150.6,0.15193552]
[1768190673865,0.98137083,3152.0,3150.6,0.15193552]
[1768190674065,0.98137083,3151.9,3150.6,0.15193552]
[1768190674267,0.98137083,3151.8,3150.6,0.15193552]
[1768190674465,0.98137083,3151.7,3150.6,0.15193552]
[1768190674663,0.98137083,3151.6,3150.6,0.15193552]
[1768190674864,0.98137083,3151.5,3150.6,0.15193552]
[1768190675069,0.98137083,3151.4,3150.6,0.15193552]
[1768190675270,2.97667062,3152.5,3150.6,0.15193552]
[1768190675472,0.98119521,3152.4,3150.6,0.15193552]
[1768190675773,0.98119521,3152.3,3150.6,0.15193552]
[1768190675970,0.98119521,3152.2,3150.6,0.15193552]
[1768190676172,0.98119521,3152.1,3150.6,0.15193552]
[1768190676372,0.98119521,3152.0,3150.6,0.15193552]
[1768190676672,0.98119521,3151.9,3150.6,0.15193552]
[1768190676877,0.98119521,3151.8,3150.6,0.15193552]
[1768190677072,2.82099175,3152.7,3151.1,0.15727676]
[1768190677277,0.15912738,3152.9,3151.1,0.15727676]
[1768190677578,1.1280223,3152.9,3151.1,0.15727676]
[1768190678976,0.15912738,3152.9,3151.1,0.15727676]
[1768190681078,0.15912738,3152.9,3151.2,2.278]
[1768190681374,0.15912738,3152.9,3151.3,0.15727676]
[1768190685382,0.15567887,3152.7,3151.2,2.278]
[1768190689177,0.97771618,3152.6,3151.2,2.278]
[1768190689477,0.97771618,3152.5,3151.2,2.278]
[1768190689677,0.97771618,3152.4,3151.2,2.278]
[1768190689879,0.97771618,3152.3,3151.2,2.278]
[1768190690083,0.97771618,3152.2,3151.2,2.278]
[1768190690385,0.97771618,3152.1,3151.2,2.278]
[1768190690587,0.97771618,3152.0,3151.2,2.278]
[1768190690893,0.97234343,3152.9,3151.2,2.43527676]
[1768190691087,0.97769015,3152.8,3151.2,2.43527676]
[1768190691287,0.97769015,3152.7,3151.2,2.43527676]
[1768190691481,0.97769015,3152.6,3151.2,2.43527676]
[1768190691683,0.97769015,3152.5,3151.2,2.43527676]
[1768190691980,0.97769015,3152.4,3151.2,2.43527676]
[1768190692175,1.1280223,3152.9,3151.2,2.43527676]
[1768190692176,0.97769015,3152.3,3151.2,2.43527676]
[1768190692385,0.97769015,3152.2,3151.2,2.43527676]
[1768190692589,0.97769015,3152.1,3151.2,2.43527676]
[1768190692886,0.97769015,3152.0,3151.2,2.43527676]
[1768190693087,1.1280223,3152.9,3151.2,2.43527676]
[1768190693283,0.97773594,3152.8,3151.2,2.43527676]
[1768190693483,0.97773594,3152.7,3151.2,2.43527676]
[1768190693689,0.97773594,3152.6,3151.2,2.43527676]
[1768190693891,0.97773594,3152.5,3151.2,2.43527676]
[1768190694187,0.97773594,3152.4,3151.2,2.43527676]
[1768190694387,0.97773594,3152.3,3151.2,2.43527676]
[1768190694589,0.97773594,3152.2,3151.2,2.43527676]
[1768190694791,0.97773594,3152.1,3151.3,0.15727676]
[1768190694995,0.97773594,3152.0,3151.3,0.15727676]